[Event "Betsys MČR v online bleskovém šachu 2021"]
[Site "Chess.com"]
[Date "2021.04.17"]
[Round "3"]
[White "Filipdol"]
[Black "EliasD123"]
[Result "1-0"]
[WhiteElo "1862"]
[BlackElo "1288"]
[TimeControl "180+1"]
[EndTime "9:28:29 PDT"]
[Termination "Uživatel Filipdol zvítězil matem"]

1. e4 {[%clk 0:03:00.9]} 1... e5 {[%clk 0:02:58.6]} 2. Nf3 {[%clk 0:02:59.1]}
2... Nc6 {[%clk 0:02:59.2]} 3. Bc4 {[%clk 0:02:59.5]} 3... Nf6 {[%clk
0:02:59.1]} 4. d3 {[%clk 0:02:59.6]} 4... Bc5 {[%clk 0:02:58.1]} 5. c3 {[%clk
0:02:59.1]} 5... d6 {[%clk 0:02:55.8]} 6. Bb3 {[%clk 0:02:58.8]} 6... Bg4 {[%clk
0:02:53.7]} 7. Nbd2 {[%clk 0:02:58.8]} 7... Qd7 {[%clk 0:02:49.8]} 8. Qe2 {[%clk
0:02:58.6]} 8... a6 {[%clk 0:02:40.8]} 9. h3 {[%clk 0:02:58.2]} 9... Bh5 {[%clk
0:02:39.9]} 10. Nf1 {[%clk 0:02:56.3]} 10... O-O-O {[%clk 0:02:32.9]} 11. Ng3
{[%clk 0:02:50.9]} 11... Bg6 {[%clk 0:02:30.1]} 12. Bd2 {[%clk 0:02:46.6]} 12...
h5 {[%clk 0:02:27.5]} 13. Nh4 {[%clk 0:02:41.2]} 13... Rhe8 {[%clk 0:02:19.4]}
14. O-O-O {[%clk 0:02:33.1]} 14... d5 {[%clk 0:02:13.6]} 15. Nxg6 {[%clk
0:02:25]} 15... fxg6 {[%clk 0:02:12.5]} 16. Bg5 {[%clk 0:02:14.3]} 16... d4
{[%clk 0:02:04.7]} 17. c4 {[%clk 0:01:49.7]} 17... Bb4 {[%clk 0:01:55.6]} 18. a3
{[%clk 0:01:46]} 18... Ba5 {[%clk 0:01:54.4]} 19. f4 {[%clk 0:01:34]} 19... Qd6
{[%clk 0:01:34.3]} 20. f5 {[%clk 0:01:22.6]} 20... b5 {[%clk 0:01:21.5]} 21.
cxb5 {[%clk 0:01:18.1]} 21... axb5 {[%clk 0:01:21]} 22. fxg6 {[%clk 0:01:11.9]}
22... Qc5+ {[%clk 0:01:14.3]} 23. Kb1 {[%clk 0:01:09.8]} 23... Qb6 {[%clk
0:01:11.2]} 24. Bxf6 {[%clk 0:01:07.5]} 24... gxf6 {[%clk 0:01:09.9]} 25. g7
{[%clk 0:01:04]} 25... b4 {[%clk 0:01:04.6]} 26. a4 {[%clk 0:01:00.3]} 26... Qa6
{[%clk 0:00:58.5]} 27. Bc4 {[%clk 0:00:56.7]} 27... Qa7 {[%clk 0:00:49.3]} 28.
b3 {[%clk 0:00:51.1]} 28... Bb6 {[%clk 0:00:45.9]} 29. g8=Q {[%clk 0:00:46.6]}
29... Rxg8 {[%clk 0:00:43.3]} 30. Bxg8 {[%clk 0:00:46.9]} 30... Rxg8 {[%clk
0:00:43]} 31. Nf5 {[%clk 0:00:44.7]} 31... Kb7 {[%clk 0:00:41]} 32. Qc2 {[%clk
0:00:41.5]} 32... Na5 {[%clk 0:00:34.6]} 33. Rc1 {[%clk 0:00:39.8]} 33... Qa6
{[%clk 0:00:24]} 34. Rhd1 {[%clk 0:00:24.3]} 34... c5 {[%clk 0:00:22.9]} 35.
Nd6+ {[%clk 0:00:20.6]} 35... Kc7 {[%clk 0:00:20.6]} 36. Nb5+ {[%clk 0:00:20.5]}
36... Kb7 {[%clk 0:00:20.2]} 37. Nd6+ {[%clk 0:00:20.2]} 37... Kc7 {[%clk
0:00:20.4]} 38. Nc4 {[%clk 0:00:20.5]} 38... Rg3 {[%clk 0:00:18.9]} 39. Nxa5
{[%clk 0:00:19.5]} 39... Qxa5 {[%clk 0:00:18.7]} 40. Qf2 {[%clk 0:00:19.5]}
40... Rxd3 {[%clk 0:00:18.1]} 41. Rxd3 {[%clk 0:00:19.1]} 41... Kc6 {[%clk
0:00:17.7]} 42. Qc2 {[%clk 0:00:17.6]} 42... Kc7 {[%clk 0:00:18.3]} 43. Qc4
{[%clk 0:00:18.2]} 43... Kc6 {[%clk 0:00:17.9]} 44. Qd5+ {[%clk 0:00:18.9]}
44... Kc7 {[%clk 0:00:17.4]} 45. Rc4 {[%clk 0:00:19.6]} 45... Kc8 {[%clk
0:00:16]} 46. Rg3 {[%clk 0:00:20.2]} 46... Kc7 {[%clk 0:00:15.1]} 47. Rg7+
{[%clk 0:00:20.7]} 47... Kb8 {[%clk 0:00:15.6]} 48. Qg8+ {[%clk 0:00:20]} 48...
Bd8 {[%clk 0:00:14.4]} 49. Rd7 {[%clk 0:00:19.5]} 49... Kc8 {[%clk 0:00:09.9]}
50. Qxd8+ {[%clk 0:00:20.2]} 50... Qxd8 {[%clk 0:00:08.8]} 51. Rxd8+ {[%clk
0:00:21.1]} 51... Kxd8 {[%clk 0:00:09]} 52. Rxc5 {[%clk 0:00:22]} 52... Ke7
{[%clk 0:00:09.2]} 53. Kc2 {[%clk 0:00:22.3]} 53... Ke6 {[%clk 0:00:09.3]} 54.
Rd5 {[%clk 0:00:23.1]} 54... f5 {[%clk 0:00:08.9]} 55. Kd3 {[%clk 0:00:23.8]}
55... fxe4+ {[%clk 0:00:08.3]} 56. Kxe4 {[%clk 0:00:24.7]} 56... h4 {[%clk
0:00:08.3]} 57. Rxe5+ {[%clk 0:00:25.1]} 57... Kd6 {[%clk 0:00:08.2]} 58. Rd5+
{[%clk 0:00:25.2]} 58... Ke6 {[%clk 0:00:08.4]} 59. Rxd4 {[%clk 0:00:26.1]}
59... Kf6 {[%clk 0:00:07.1]} 60. Rxb4 {[%clk 0:00:26.7]} 60... Kg5 {[%clk
0:00:06.7]} 61. Rb5+ {[%clk 0:00:27.6]} 61... Kg6 {[%clk 0:00:06.7]} 62. Kf4
{[%clk 0:00:28.5]} 62... Kf6 {[%clk 0:00:06.8]} 63. Kg4 {[%clk 0:00:29.4]} 63...
Ke6 {[%clk 0:00:07.4]} 64. Kxh4 {[%clk 0:00:30.2]} 64... Kd6 {[%clk 0:00:08.1]}
65. Kg4 {[%clk 0:00:30.8]} 65... Kc6 {[%clk 0:00:09]} 66. h4 {[%clk 0:00:31.4]}
66... Kd7 {[%clk 0:00:07.3]} 67. h5 {[%clk 0:00:32.3]} 67... Ke7 {[%clk
0:00:08.2]} 68. h6 {[%clk 0:00:33.1]} 68... Kf7 {[%clk 0:00:08.8]} 69. h7 {[%clk
0:00:33.9]} 69... Kg7 {[%clk 0:00:09]} 70. Rb7+ {[%clk 0:00:34.3]} 70... Kh8
{[%clk 0:00:09.6]} 71. Rb8+ {[%clk 0:00:33]} 71... Kg7 {[%clk 0:00:08.8]} 72.
Rb4 {[%clk 0:00:33.2]} 72... Kf7 {[%clk 0:00:09.2]} 73. Rf4+ {[%clk 0:00:33.3]}
73... Kg7 {[%clk 0:00:08.3]} 74. h8=Q+ {[%clk 0:00:33.2]} 74... Kxh8 {[%clk
0:00:08.1]} 75. Kg5 {[%clk 0:00:32.6]} 75... Kg8 {[%clk 0:00:08.3]} 76. Kg6
{[%clk 0:00:31.2]} 76... Kh8 {[%clk 0:00:07.2]} 77. Rb4 {[%clk 0:00:31.9]} 77...
Kg8 {[%clk 0:00:06.8]} 78. Rb8# {[%clk 0:00:32.4]} 1-0

[Event "Betsys MČR v online bleskovém šachu 2021"]
[Site "Chess.com"]
[Date "2021.04.17"]
[Round "3"]
[White "TheFr0zenSun"]
[Black "Herracek"]
[Result "1/2-1/2"]
[WhiteElo "2243"]
[BlackElo "2605"]
[TimeControl "180+1"]
[EndTime "9:28:32 PDT"]
[Termination "Remíza opakováním pozice"]

1. d4 {[%clk 0:02:56.5]} 1... Nf6 {[%clk 0:02:59.4]} 2. Nf3 {[%clk 0:02:52.7]}
2... e6 {[%clk 0:02:59.4]} 3. Bf4 {[%clk 0:02:51.1]} 3... c5 {[%clk 0:02:58.5]}
4. e3 {[%clk 0:02:50.2]} 4... Nc6 {[%clk 0:02:57.6]} 5. Nbd2 {[%clk 0:02:35.6]}
5... d5 {[%clk 0:02:45.8]} 6. c3 {[%clk 0:02:34.6]} 6... Bd6 {[%clk 0:02:42.5]}
7. Bg3 {[%clk 0:02:34.5]} 7... O-O {[%clk 0:02:41.4]} 8. Bd3 {[%clk 0:02:33.8]}
8... b6 {[%clk 0:02:23.6]} 9. e4 {[%clk 0:02:32.3]} 9... dxe4 {[%clk 0:02:22.4]}
10. Nxe4 {[%clk 0:02:31.2]} 10... Nxe4 {[%clk 0:02:17.7]} 11. Bxe4 {[%clk
0:02:30.7]} 11... Bb7 {[%clk 0:02:17.4]} 12. dxc5 {[%clk 0:02:23.1]} 12... Bxc5
{[%clk 0:02:11.5]} 13. Qa4 {[%clk 0:02:09.2]} 13... Rc8 {[%clk 0:01:36.8]} 14.
O-O {[%clk 0:02:01.5]} 14... f5 {[%clk 0:01:18.9]} 15. Rad1 {[%clk 0:01:44]}
15... Qf6 {[%clk 0:01:07.5]} 16. Bb1 {[%clk 0:01:35.7]} 16... Rf7 {[%clk
0:00:32.2]} 17. Bd6 {[%clk 0:01:27.1]} 17... Bxd6 {[%clk 0:00:19.5]} 18. Rxd6
{[%clk 0:01:26]} 18... Ne5 {[%clk 0:00:20.1]} 19. Nxe5 {[%clk 0:01:19]} 19...
Qxe5 {[%clk 0:00:21]} 20. Rfd1 {[%clk 0:01:08.5]} 20... Bd5 {[%clk 0:00:21.1]}
21. Rd7 {[%clk 0:01:01.7]} 21... Rxd7 {[%clk 0:00:20.8]} 22. Qxd7 {[%clk
0:01:01.1]} 22... Qc7 {[%clk 0:00:21.3]} 23. Qxc7 {[%clk 0:00:56.6]} 23... Rxc7
{[%clk 0:00:22.2]} 24. Bxf5 {[%clk 0:00:52.9]} 24... Bxa2 {[%clk 0:00:22.1]} 25.
Be4 {[%clk 0:00:50.4]} 25... g6 {[%clk 0:00:17.9]} 26. f4 {[%clk 0:00:48]} 26...
Kg7 {[%clk 0:00:18]} 27. g3 {[%clk 0:00:47.7]} 27... Kf6 {[%clk 0:00:18.4]} 28.
Kf2 {[%clk 0:00:47.9]} 28... b5 {[%clk 0:00:18.3]} 29. Ke3 {[%clk 0:00:46.7]}
29... Bc4 {[%clk 0:00:16]} 30. Ra1 {[%clk 0:00:45.4]} 30... h6 {[%clk 0:00:12]}
31. Ra6 {[%clk 0:00:45]} 31... Kf7 {[%clk 0:00:10.2]} 32. b4 {[%clk 0:00:41.7]}
32... Kf6 {[%clk 0:00:08.7]} 33. Kd4 {[%clk 0:00:41.5]} 33... Kf7 {[%clk
0:00:08.8]} 34. Ke5 {[%clk 0:00:39.3]} 34... Bb3 {[%clk 0:00:09.2]} 35. h4
{[%clk 0:00:36.1]} 35... h5 {[%clk 0:00:08.1]} 36. Kd4 {[%clk 0:00:29.3]} 36...
Bc4 {[%clk 0:00:07.7]} 37. Rc6 {[%clk 0:00:27.6]} 37... Rd7+ {[%clk 0:00:07.2]}
38. Ke3 {[%clk 0:00:25.9]} 38... Bd5 {[%clk 0:00:07.5]} 39. Ra6 {[%clk
0:00:21.8]} 39... Bc4 {[%clk 0:00:06.8]} 40. Rc6 {[%clk 0:00:20.4]} 40... Kf6
{[%clk 0:00:06.5]} 41. Ra6 {[%clk 0:00:20]} 41... Rd1 {[%clk 0:00:06.4]} 42.
Rxa7 {[%clk 0:00:19]} 42... Rg1 {[%clk 0:00:07]} 43. Kf2 {[%clk 0:00:18.6]}
43... Rc1 {[%clk 0:00:07.6]} 44. Ra8 {[%clk 0:00:17.1]} 44... Rxc3 {[%clk
0:00:07.2]} 45. Rg8 {[%clk 0:00:16.9]} 45... Bd3 {[%clk 0:00:04.9]} 46. Rxg6+
{[%clk 0:00:15.6]} 46... Kf7 {[%clk 0:00:05.5]} 47. Bxd3 {[%clk 0:00:15.7]}
47... Rxd3 {[%clk 0:00:06.4]} 48. Rg5 {[%clk 0:00:16]} 48... Rd2+ {[%clk
0:00:04.5]} 49. Ke3 {[%clk 0:00:16.1]} 49... Rg2 {[%clk 0:00:04.1]} 50. Kf3
{[%clk 0:00:15]} 50... Rb2 {[%clk 0:00:04.6]} 51. Rxb5 {[%clk 0:00:14.9]} 51...
Rb3+ {[%clk 0:00:05]} 52. Kg2 {[%clk 0:00:14.4]} 52... Kg6 {[%clk 0:00:05.2]}
53. Kh3 {[%clk 0:00:14.5]} 53... Rb2 {[%clk 0:00:04.7]} 54. Rb6 {[%clk
0:00:14.6]} 54... Kf6 {[%clk 0:00:04.8]} 55. b5 {[%clk 0:00:14.6]} 55... Rb3
{[%clk 0:00:05.2]} 56. Rb7 {[%clk 0:00:14.7]} 56... Kf5 {[%clk 0:00:05.6]} 57.
b6 {[%clk 0:00:14.1]} 57... Ke4 {[%clk 0:00:05.9]} 58. Re7 {[%clk 0:00:13.1]}
58... Rxb6 {[%clk 0:00:05]} 59. Rh7 {[%clk 0:00:10.2]} 59... Kf3 {[%clk
0:00:04.5]} 60. Rxh5 {[%clk 0:00:09.6]} 60... Rb1 {[%clk 0:00:04.6]} 61. Kh2
{[%clk 0:00:08.8]} 61... Rb2+ {[%clk 0:00:04.9]} 62. Kh3 {[%clk 0:00:09]} 62...
Rb1 {[%clk 0:00:04.9]} 63. Kh2 {[%clk 0:00:09.2]} 63... Rb2+ {[%clk 0:00:05.5]}
64. Kh3 {[%clk 0:00:09.5]} 64... Rb1 {[%clk 0:00:05.8]} 1/2-1/2

[Event "Betsys MČR v online bleskovém šachu 2021"]
[Site "Chess.com"]
[Date "2021.04.17"]
[Round "3"]
[White "elftom"]
[Black "MBorkovec"]
[Result "1-0"]
[WhiteElo "1961"]
[BlackElo "2281"]
[TimeControl "180+1"]
[EndTime "9:28:38 PDT"]
[Termination "Uživatel elftom zvítězil po vzdání soupeře"]

1. c4 {[%clk 0:03:00]} 1... Nf6 {[%clk 0:02:59.2]} 2. Nc3 {[%clk 0:02:56.1]}
2... g6 {[%clk 0:02:59]} 3. g3 {[%clk 0:02:55.4]} 3... Bg7 {[%clk 0:02:58.9]} 4.
Bg2 {[%clk 0:02:55.4]} 4... d6 {[%clk 0:02:59.3]} 5. e4 {[%clk 0:02:54.1]} 5...
O-O {[%clk 0:02:59.2]} 6. Nge2 {[%clk 0:02:54.3]} 6... c5 {[%clk 0:02:58.5]} 7.
d3 {[%clk 0:02:53.6]} 7... Nc6 {[%clk 0:02:59]} 8. O-O {[%clk 0:02:53.1]} 8...
Bg4 {[%clk 0:02:58.8]} 9. h3 {[%clk 0:02:51.6]} 9... Bd7 {[%clk 0:02:58.4]} 10.
Rb1 {[%clk 0:02:44.9]} 10... Qc8 {[%clk 0:02:52.7]} 11. Kh2 {[%clk 0:02:44.3]}
11... a6 {[%clk 0:02:53]} 12. a3 {[%clk 0:02:40.3]} 12... Ne8 {[%clk 0:02:45.5]}
13. b4 {[%clk 0:02:39]} 13... b6 {[%clk 0:02:44.7]} 14. b5 {[%clk 0:02:33.9]}
14... Nd4 {[%clk 0:02:38.8]} 15. Nxd4 {[%clk 0:02:31.9]} 15... Bxd4 {[%clk
0:02:37.8]} 16. Nd5 {[%clk 0:02:23.5]} 16... Qd8 {[%clk 0:02:23.2]} 17. Bh6
{[%clk 0:01:57.4]} 17... Ng7 {[%clk 0:02:22.1]} 18. a4 {[%clk 0:01:40.6]} 18...
e6 {[%clk 0:02:14.9]} 19. Ne3 {[%clk 0:01:31.9]} 19... axb5 {[%clk 0:02:14.5]}
20. axb5 {[%clk 0:01:31.2]} 20... Ra3 {[%clk 0:01:49.6]} 21. h4 {[%clk
0:01:29.7]} 21... Ra2 {[%clk 0:01:44.2]} 22. Qc1 {[%clk 0:01:16.3]} 22... Qe7
{[%clk 0:01:33.9]} 23. Bg5 {[%clk 0:01:15]} 23... f6 {[%clk 0:01:33]} 24. Bh6
{[%clk 0:01:15.5]} 24... Rfa8 {[%clk 0:01:32.3]} 25. Nc2 {[%clk 0:01:14.9]}
25... e5 {[%clk 0:01:28.1]} 26. Nxd4 {[%clk 0:01:13.9]} 26... cxd4 {[%clk
0:01:26.1]} 27. Rb2 {[%clk 0:00:57.9]} 27... Be6 {[%clk 0:01:25.2]} 28. Rxa2
{[%clk 0:00:56.8]} 28... Rxa2 {[%clk 0:01:25.1]} 29. Qb1 {[%clk 0:00:54.6]}
29... Qa7 {[%clk 0:01:25.6]} 30. Kg1 {[%clk 0:00:48.8]} 30... Qa3 {[%clk
0:01:24.8]} 31. Bc1 {[%clk 0:00:44]} 31... Qa4 {[%clk 0:01:20.1]} 32. Bb2 {[%clk
0:00:42]} 32... Ne8 {[%clk 0:01:18.2]} 33. Bf3 {[%clk 0:00:40.9]} 33... Nc7
{[%clk 0:01:16.9]} 34. Bd1 {[%clk 0:00:40.5]} 34... Qa8 {[%clk 0:01:16.7]} 35.
Bb3 {[%clk 0:00:38.6]} 35... Ra7 {[%clk 0:01:16.1]} 36. f4 {[%clk 0:00:37.6]}
36... Bf7 {[%clk 0:01:15]} 37. f5 {[%clk 0:00:34.2]} 37... Kg7 {[%clk
0:01:10.1]} 38. Qd1 {[%clk 0:00:32.4]} 38... gxf5 {[%clk 0:00:51.3]} 39. Rxf5
{[%clk 0:00:31.6]} 39... Bg6 {[%clk 0:00:50.4]} 40. Qg4 {[%clk 0:00:31.1]} 40...
Kf7 {[%clk 0:00:39.8]} 41. Rf1 {[%clk 0:00:30.2]} 41... Ne6 {[%clk 0:00:19.8]}
42. c5 {[%clk 0:00:26.9]} 42... Qe8 {[%clk 0:00:17.3]} 43. h5 {[%clk 0:00:22.7]}
43... dxc5 {[%clk 0:00:16.2]} 44. hxg6+ {[%clk 0:00:21.9]} 44... hxg6 {[%clk
0:00:16.5]} 45. Bxe6+ {[%clk 0:00:21.1]} 45... Qxe6 {[%clk 0:00:16]} 46. Qxe6+
{[%clk 0:00:21.4]} 46... Kxe6 {[%clk 0:00:16.5]} 47. Ra1 {[%clk 0:00:22.3]}
47... Rxa1+ {[%clk 0:00:16.1]} 48. Bxa1 {[%clk 0:00:22.1]} 48... f5 {[%clk
0:00:16.7]} 49. exf5+ {[%clk 0:00:20.5]} 49... gxf5 {[%clk 0:00:16.4]} 50. Kf2
{[%clk 0:00:21]} 50... e4 {[%clk 0:00:16.8]} 51. Ke2 {[%clk 0:00:14.7]} 51...
Kd5 {[%clk 0:00:16.9]} 52. Bb2 {[%clk 0:00:11]} 52... c4 {[%clk 0:00:17]} 53.
dxe4+ {[%clk 0:00:06.7]} 53... fxe4 {[%clk 0:00:17.2]} 54. g4 {[%clk 0:00:07.3]}
54... c3 {[%clk 0:00:17.3]} 55. Bc1 {[%clk 0:00:07]} 55... d3+ {[%clk
0:00:17.1]} 56. Ke3 {[%clk 0:00:07]} 56... Ke5 {[%clk 0:00:16.1]} 57. Ba3 {[%clk
0:00:05.5]} 57... d2 {[%clk 0:00:14.3]} 58. Ke2 {[%clk 0:00:04.5]} 58... Kf4
{[%clk 0:00:14.3]} 59. Bb4 {[%clk 0:00:03.7]} 59... Kxg4 {[%clk 0:00:12]} 60.
Bxc3 {[%clk 0:00:03.6]} 60... e3 {[%clk 0:00:12.4]} 61. Bd4 {[%clk 0:00:02.2]}
61... d1=Q+ {[%clk 0:00:07.1]} 62. Kxd1 {[%clk 0:00:02.2]} 62... Kf3 {[%clk
0:00:07.7]} 63. Bxb6 {[%clk 0:00:01.4]} 63... Ke4 {[%clk 0:00:07.5]} 64. Ke2
{[%clk 0:00:01.1]} 64... Kd5 {[%clk 0:00:06.8]} 65. Bxe3 {[%clk 0:00:02]} 65...
Kc4 {[%clk 0:00:07.1]} 66. b6 {[%clk 0:00:01.9]} 1-0

[Event "Betsys MČR v online bleskovém šachu 2021"]
[Site "Chess.com"]
[Date "2021.04.17"]
[Round "3"]
[White "Bohous13"]
[Black "RadosC"]
[Result "1-0"]
[WhiteElo "2226"]
[BlackElo "2510"]
[TimeControl "180+1"]
[EndTime "9:28:40 PDT"]
[Termination "Uživatel Bohous13 zvítězil na čas"]

1. e4 {[%clk 0:03:00.9]} 1... c5 {[%clk 0:02:59.5]} 2. c4 {[%clk 0:03:00.5]}
2... Nc6 {[%clk 0:02:59.2]} 3. Ne2 {[%clk 0:03:00.9]} 3... e5 {[%clk 0:02:58.6]}
4. Nbc3 {[%clk 0:03:00.6]} 4... g6 {[%clk 0:02:57.7]} 5. g3 {[%clk 0:03:00.8]}
5... Bg7 {[%clk 0:02:57.9]} 6. Bg2 {[%clk 0:03:01.2]} 6... Nge7 {[%clk
0:02:56.8]} 7. O-O {[%clk 0:03:01.3]} 7... O-O {[%clk 0:02:57.3]} 8. a3 {[%clk
0:03:01.7]} 8... d6 {[%clk 0:02:56.5]} 9. Rb1 {[%clk 0:03:01.5]} 9... a5 {[%clk
0:02:56.7]} 10. d3 {[%clk 0:03:01.2]} 10... h6 {[%clk 0:02:55.9]} 11. Nd5 {[%clk
0:03:00.9]} 11... Nxd5 {[%clk 0:02:54.2]} 12. exd5 {[%clk 0:03:00.7]} 12... Ne7
{[%clk 0:02:53.3]} 13. b4 {[%clk 0:02:58.6]} 13... axb4 {[%clk 0:02:52.4]} 14.
axb4 {[%clk 0:02:58.7]} 14... b6 {[%clk 0:02:53.1]} 15. bxc5 {[%clk 0:02:58.1]}
15... bxc5 {[%clk 0:02:53.4]} 16. f4 {[%clk 0:02:52.8]} 16... Kh7 {[%clk
0:02:44.4]} 17. fxe5 {[%clk 0:02:47.5]} 17... dxe5 {[%clk 0:02:36.4]} 18. Be3
{[%clk 0:02:28.7]} 18... Ra5 {[%clk 0:02:24]} 19. Nc3 {[%clk 0:02:07.9]} 19...
Nf5 {[%clk 0:02:21.9]} 20. Bf2 {[%clk 0:02:07.1]} 20... Nd6 {[%clk 0:01:57.8]}
21. Qd2 {[%clk 0:01:49.8]} 21... f5 {[%clk 0:01:54.5]} 22. Rb8 {[%clk
0:01:35.3]} 22... Qc7 {[%clk 0:01:51.8]} 23. Rfb1 {[%clk 0:01:34]} 23... Ra3
{[%clk 0:01:42.6]} 24. R8b3 {[%clk 0:01:27]} 24... Rxb3 {[%clk 0:01:41.5]} 25.
Rxb3 {[%clk 0:01:27]} 25... Bd7 {[%clk 0:01:41.6]} 26. Qa2 {[%clk 0:01:12.9]}
26... h5 {[%clk 0:01:24.9]} 27. Qa6 {[%clk 0:01:04.8]} 27... h4 {[%clk
0:01:21.7]} 28. Qb6 {[%clk 0:00:51.4]} 28... Rc8 {[%clk 0:01:18.3]} 29. Qxc7
{[%clk 0:00:47.5]} 29... Rxc7 {[%clk 0:01:18.1]} 30. Rb6 {[%clk 0:00:46.8]}
30... Bf8 {[%clk 0:01:17.5]} 31. gxh4 {[%clk 0:00:40]} 31... Be7 {[%clk
0:01:13.3]} 32. Bf3 {[%clk 0:00:34.3]} 32... Kg7 {[%clk 0:01:11.8]} 33. Kf1
{[%clk 0:00:33.4]} 33... Kf7 {[%clk 0:01:03.1]} 34. Bd1 {[%clk 0:00:29]} 34...
Nc8 {[%clk 0:00:55.7]} 35. Rb8 {[%clk 0:00:23.4]} 35... Bd6 {[%clk 0:00:52.4]}
36. Rb2 {[%clk 0:00:19.2]} 36... Ra7 {[%clk 0:00:50.9]} 37. Ra2 {[%clk
0:00:17.8]} 37... Rb7 {[%clk 0:00:49.9]} 38. Ra5 {[%clk 0:00:15.7]} 38... Rc7
{[%clk 0:00:43.7]} 39. Ba4 {[%clk 0:00:13.9]} 39... Ke7 {[%clk 0:00:41]} 40.
Bxd7 {[%clk 0:00:13.2]} 40... Kxd7 {[%clk 0:00:40.6]} 41. Nb5 {[%clk 0:00:13.4]}
41... Rb7 {[%clk 0:00:36.2]} 42. Nxd6 {[%clk 0:00:13]} 42... Nxd6 {[%clk
0:00:36.5]} 43. Bxc5 {[%clk 0:00:12.5]} 43... Rb1+ {[%clk 0:00:35.6]} 44. Kf2
{[%clk 0:00:11.8]} 44... Rb2+ {[%clk 0:00:35.2]} 45. Ke1 {[%clk 0:00:11.9]}
45... Nb7 {[%clk 0:00:33.8]} 46. Ra7 {[%clk 0:00:10.9]} 46... Kc8 {[%clk
0:00:33.1]} 47. Be3 {[%clk 0:00:10.5]} 47... Rxh2 {[%clk 0:00:31]} 48. c5 {[%clk
0:00:10.4]} 48... f4 {[%clk 0:00:30.7]} 49. c6 {[%clk 0:00:08.3]} 49... fxe3
{[%clk 0:00:21.7]} 50. Rxb7 {[%clk 0:00:07.7]} 50... Rc2 {[%clk 0:00:17.9]} 51.
Rg7 {[%clk 0:00:04.5]} 51... Rc5 {[%clk 0:00:16.2]} 52. Ke2 {[%clk 0:00:03.3]}
52... Rxd5 {[%clk 0:00:16.2]} 53. Rxg6 {[%clk 0:00:03.5]} 53... Rd4 {[%clk
0:00:13.9]} 54. Kxe3 {[%clk 0:00:03.2]} 54... Rxh4 {[%clk 0:00:14]} 55. Re6
{[%clk 0:00:03.6]} 55... Rh5 {[%clk 0:00:13.4]} 56. Ke4 {[%clk 0:00:03.4]} 56...
Kc7 {[%clk 0:00:10.5]} 57. Rxe5 {[%clk 0:00:03.4]} 57... Rh1 {[%clk 0:00:09.1]}
58. Rc5 {[%clk 0:00:03.5]} 58... Kd6 {[%clk 0:00:08.6]} 59. Rc3 {[%clk
0:00:03.1]} 59... Rh4+ {[%clk 0:00:07.7]} 60. Ke3 {[%clk 0:00:03.4]} 60... Rh3+
{[%clk 0:00:07.1]} 61. Kd2 {[%clk 0:00:03.7]} 61... Rh2+ {[%clk 0:00:07.1]} 62.
Kd1 {[%clk 0:00:03.7]} 62... Kc7 {[%clk 0:00:07.1]} 63. d4 {[%clk 0:00:02.9]}
63... Rh4 {[%clk 0:00:05.7]} 64. Rc4 {[%clk 0:00:03.1]} 64... Rh2 {[%clk
0:00:03.7]} 65. Kc1 {[%clk 0:00:03.2]} 65... Rg2 {[%clk 0:00:03.1]} 66. d5
{[%clk 0:00:03.1]} 66... Rg5 {[%clk 0:00:01.4]} 67. Rd4 {[%clk 0:00:03.4]} 1-0